{"text_format":"3","workbook":"xlsx","n_sheets":2,"sheets":["График на служители","Настройка"],"not_rendered":{"defined_names":21},"read":"whole","date_system":"1900"}

{"sheet":"График на служители","index":0,"n_rows":296,"n_cols":21,"rows_kept":296,"merged":[[6,1,6,9],[66,1,66,9],[126,1,126,9],[186,1,186,9],[246,1,246,9]]}
["График за смени на служители"]
[]
[null,"ОБЩО:",null,{"$f":"SUM(4:4)","v":{"v":56,"d":"56.00"}}]
[null,"ЧАСОВЕ:",null,{"$f":"Общо_дневни_часове_на_служители","v":{"v":8,"d":"8.00"}},{"v":8,"d":"8.00"},{"v":8,"d":"8.00"},{"v":8,"d":"8.00"},{"v":8,"d":"8.00"},{"v":8,"d":"8.00"},{"v":8,"d":"8.00"},{"v":0,"d":"0.00"},{"v":0,"d":"0.00"},{"v":0,"d":"0.00"},{"v":0,"d":"0.00"},{"v":0,"d":"0.00"},{"v":0,"d":"0.00"},{"v":0,"d":"0.00"},{"v":0,"d":"0.00"},{"v":0,"d":"0.00"},{"v":0,"d":"0.00"},{"v":0,"d":"0.00"}]
[null,"СЛУЖИТЕЛ:",null,"Hamlin, J","Miller, B","Silva, A","Miller, B","Hansen, C","Kerr, M","Rath, A"]
[]
[null,"2012-07-16T09:00:00"]
[null,{"$f":"B7","v":41106.375},{"$nulls":5},"Ваканция"]
[null,{"$f":"Показване_на_периоди","v":":15"},null,"Рецепция",{"$nulls":3},"Ваканция"]
[null,":30",null,"Рецепция",{"$nulls":3},"Ваканция"]
[null,":45",null,"Рецепция","Ръководител",null,"Обсл. на клиенти","Ваканция"]
[null,"10:00 AM",null,"Рецепция","Ръководител",null,"Обсл. на клиенти","Ваканция"]
[null,":15",null,"Рецепция","Ръководител",null,"Обсл. на клиенти","Ваканция"]
[null,":30",null,"Рецепция","Ръководител",null,"Обсл. на клиенти","Ваканция","Счетоводство"]
[null,":45",null,"Рецепция","Ръководител",null,"Обсл. на клиенти","Ваканция","Счетоводство","Чистач"]
[null,"11:00 AM",null,"Рецепция","Ръководител",null,"Обсл. на клиенти","Ваканция","Счетоводство","Чистач"]
[null,":15",null,"Рецепция","Ръководител","Гид","Обсл. на клиенти","Ваканция","Счетоводство","Чистач"]
[null,":30",null,"Рецепция","Почивка","Гид","Обсл. на клиенти","Ваканция","Счетоводство","Чистач"]
[null,":45",null,"Обяд","Ръководител","Гид","Обсл. на клиенти","Ваканция","Счетоводство","Чистач"]
[null,"12:00 PM",null,"Обяд","Ръководител","Гид","Обсл. на клиенти","Ваканция","Счетоводство","Чистач"]
[null,":15",null,"Рецепция","Ръководител","Гид","Обсл. на клиенти","Ваканция","Почивка","Чистач"]
[null,":30",null,"Рецепция","Ръководител","Почивка","Обсл. на клиенти","Ваканция","Телефони","Почивка"]
[null,":45",null,"Рецепция","Ръководител","Гид","Обсл. на клиенти","Ваканция","Телефони","Чистач"]
[null,"1:00 PM",null,"Рецепция","Ръководител","Гид","Обсл. на клиенти","Ваканция","Телефони","Чистач"]
[null,":15",null,"Рецепция","Ръководител","Гид","Обяд","Ваканция","Телефони","Чистач"]
[null,":30",null,null,"Ръководител","Гид","Обяд","Ваканция","Телефони","Чистач"]
[null,":45",null,null,"Ръководител","Гид","Обяд","Ваканция","Обяд","Чистач"]
[null,"2:00 PM",null,"Касиер","Обяд","Гид","Обяд","Ваканция","Обяд","Чистач"]
[null,":15",null,"Касиер","Обяд","Гид","Обсл. на клиенти","Ваканция","Телефони","Чистач"]
[null,":30",null,"Касиер","Обяд","Обяд","Обсл. на клиенти","Ваканция","Телефони","Обяд"]
[null,":45",null,"Касиер","Обяд","Обяд","Обсл. на клиенти","Ваканция","Телефони","Обяд"]
[null,"3:00 PM",null,"Касиер","Охрана","Обяд","Обсл. на клиенти","Ваканция","Телефони","Обяд"]
[null,":15",null,"Касиер","Охрана","Обяд","Обсл. на клиенти","Ваканция","Телефони","Обяд"]
[null,":30",null,"Касиер","Охрана","Гид","Обсл. на клиенти","Ваканция","Телефони","Затвори"]
[null,":45",null,"Касиер","Охрана","Гид","Обсл. на клиенти","Ваканция","Телефони","Затвори"]
[null,"4:00 PM",null,"Касиер","Охрана","Гид","Обсл. на клиенти","Ваканция","Почивка","Затвори"]
[null,":15",null,"Почивка","Охрана","Гид","Почивка","Ваканция","Телефони","Затвори"]
[null,":30",null,"Касиер","Охрана","Гид","Обсл. на клиенти","Ваканция","Телефони","Затвори"]
[null,":45",null,"Касиер","Охрана","Гид","Обсл. на клиенти","Ваканция","Телефони","Затвори"]
[null,"5:00 PM",null,"Касиер","Охрана","Гид","Обсл. на клиенти",null,"Телефони","Затвори"]
[null,":15",null,"Касиер","Охрана","Гид","Обсл. на клиенти",null,"Телефони","Затвори"]
[null,":30",null,"Касиер","Охрана","Гид","Обсл. на клиенти",null,"Телефони","Затвори"]
[null,":45",null,"Касиер","Охрана","Гид","Обсл. на клиенти",null,"Телефони","Затвори"]
[null,"6:00 PM",null,"Касиер","Охрана","Гид","Обсл. на клиенти",null,"Телефони","Затвори"]
[null,":15",null,"Касиер","Охрана","Гид","Обсл. на клиенти",null,"Телефони","Затвори"]
[null,":30",null,null,"Охрана","Гид","Обсл. на клиенти",null,"Телефони","Затвори"]
[null,":45",null,null,"Охрана","Почивка","Обсл. на клиенти",null,"Телефони","Почивка"]
[null,"7:00 PM",{"$nulls":3},"Гид",null,null,"Телефони","Затвори"]
[null,":15",{"$nulls":3},"Гид",null,null,"Телефони","Затвори"]
[null,":30",{"$nulls":3},"Гид",{"$nulls":3},"Затвори"]
[null,":45",{"$nulls":3},"Гид",{"$nulls":3},"Затвори"]
[null,"8:00 PM",{"$nulls":3},"Гид",{"$nulls":3},"Затвори"]
[null,":15",{"$nulls":3},"Гид"]
[null,":30",{"$nulls":3},"Гид"]
[null,":45"]
[null,"9:00 PM"]
[]
[]
[]
[]
["График на служители"]
[]
[null,"ОБЩО:",null,{"$f":"SUM(64:64)","v":{"v":56,"d":"56.00"}}]
[null,"ЧАСОВЕ:",null,{"$f":"Общо_дневни_часове_на_служители","v":{"v":8,"d":"8.00"}},{"v":8,"d":"8.00"},{"v":8,"d":"8.00"},{"v":8,"d":"8.00"},{"v":8,"d":"8.00"},{"v":8,"d":"8.00"},{"v":8,"d":"8.00"},{"v":0,"d":"0.00"},{"v":0,"d":"0.00"},{"v":0,"d":"0.00"},{"v":0,"d":"0.00"},{"v":0,"d":"0.00"},{"v":0,"d":"0.00"},{"v":0,"d":"0.00"},{"v":0,"d":"0.00"},{"v":0,"d":"0.00"},{"v":0,"d":"0.00"},{"v":0,"d":"0.00"}]
[null,"СЛУЖИТЕЛ:",null,"Hamlin, J","Miller, B","Silva, A","Park, D","Hansen, C","Kerr, M","Rath, A"]
[]
[null,{"$f":"B7+1","v":"2012-07-17T09:00:00"}]
[null,{"$f":"B67","v":41107.375},{"$nulls":5},"Ваканция"]
[null,{"$f":"Показване_на_периоди","v":":15"},null,"Рецепция",{"$nulls":3},"Ваканция"]
[null,":30",null,"Рецепция",{"$nulls":3},"Ваканция"]
[null,":45",null,"Рецепция","Ръководител",null,"Обсл. на клиенти","Ваканция"]
[null,"1:00 AM",null,"Рецепция","Ръководител",null,"Обсл. на клиенти","Ваканция"]
[null,":15",null,"Рецепция","Ръководител",null,"Обсл. на клиенти","Ваканция"]
[null,":30",null,"Рецепция","Ръководител",null,"Обсл. на клиенти","Ваканция","Счетоводство"]
[null,":45",null,"Рецепция","Ръководител",null,"Обсл. на клиенти","Ваканция","Счетоводство","Чистач"]
[null,"2:00 AM",null,"Рецепция","Ръководител",null,"Обсл. на клиенти","Ваканция","Счетоводство","Чистач"]
[null,":15",null,"Рецепция","Ръководител","Гид","Обсл. на клиенти","Ваканция","Счетоводство","Чистач"]
[null,":30",null,"Рецепция","Почивка","Гид","Обсл. на клиенти","Ваканция","Счетоводство","Чистач"]
[null,":45",null,"Обяд","Ръководител","Гид","Обсл. на клиенти","Ваканция","Счетоводство","Чистач"]
[null,"3:00 AM",null,"Обяд","Ръководител","Гид","Обсл. на клиенти","Ваканция","Счетоводство","Чистач"]
[null,":15",null,"Рецепция","Ръководител","Гид","Обсл. на клиенти","Ваканция","Почивка","Чистач"]
[null,":30",null,"Рецепция","Ръководител","Почивка","Обсл. на клиенти","Ваканция","Телефони","Почивка"]
[null,":45",null,"Рецепция","Ръководител","Гид","Обсл. на клиенти","Ваканция","Телефони","Чистач"]
[null,"4:00 AM",null,"Рецепция","Ръководител","Гид","Обсл. на клиенти","Ваканция","Телефони","Чистач"]
[null,":15",null,"Рецепция","Ръководител","Гид","Обяд","Ваканция","Телефони","Чистач"]
[null,":30",null,null,"Ръководител","Гид","Обяд","Ваканция","Телефони","Чистач"]
[null,":45",null,null,"Ръководител","Гид","Обяд","Ваканция","Обяд","Чистач"]
[null,"5:00 AM",null,"Касиер","Обяд","Гид","Обяд","Ваканция","Обяд","Чистач"]
[null,":15",null,"Касиер","Обяд","Гид","Обсл. на клиенти","Ваканция","Телефони","Чистач"]
[null,":30",null,"Касиер","Обяд","Обяд","Обсл. на клиенти","Ваканция","Телефони","Обяд"]
[null,":45",null,"Касиер","Обяд","Обяд","Обсл. на клиенти","Ваканция","Телефони","Обяд"]
[null,"6:00 AM",null,"Касиер","Охрана","Обяд","Обсл. на клиенти","Ваканция","Телефони","Обяд"]
[null,":15",null,"Касиер","Охрана","Обяд","Обсл. на клиенти","Ваканция","Телефони","Обяд"]
[null,":30",null,"Касиер","Охрана","Гид","Обсл. на клиенти","Ваканция","Телефони","Затвори"]
[null,":45",null,"Касиер","Охрана","Гид","Обсл. на клиенти","Ваканция","Телефони","Затвори"]
[null,"7:00 AM",null,"Касиер","Охрана","Гид","Обсл. на клиенти","Ваканция","Почивка","Затвори"]
[null,":15",null,"Почивка","Охрана","Гид","Почивка","Ваканция","Телефони","Затвори"]
[null,":30",null,"Касиер","Охрана","Гид","Обсл. на клиенти","Ваканция","Телефони","Затвори"]
[null,":45",null,"Касиер","Охрана","Гид","Обсл. на клиенти","Ваканция","Телефони","Затвори"]
[null,"8:00 AM",null,"Касиер","Охрана","Гид","Обсл. на клиенти",null,"Телефони","Затвори"]
[null,":15",null,"Касиер","Охрана","Гид","Обсл. на клиенти",null,"Телефони","Затвори"]
[null,":30",null,"Касиер","Охрана","Гид","Обсл. на клиенти",null,"Телефони","Затвори"]
[null,":45",null,"Касиер","Охрана","Гид","Обсл. на клиенти",null,"Телефони","Затвори"]
[null,"9:00 AM",null,"Касиер","Охрана","Гид","Обсл. на клиенти",null,"Телефони","Затвори"]
[null,":15",null,"Касиер","Охрана","Гид","Обсл. на клиенти",null,"Телефони","Затвори"]
[null,":30",null,null,"Охрана","Гид","Обсл. на клиенти",null,"Телефони","Затвори"]
[null,":45",null,null,"Охрана","Почивка","Обсл. на клиенти",null,"Телефони","Почивка"]
[null,"10:00 AM",{"$nulls":3},"Гид",null,null,"Телефони","Затвори"]
[null,":15",{"$nulls":3},"Гид",null,null,"Телефони","Затвори"]
[null,":30",{"$nulls":3},"Гид",{"$nulls":3},"Затвори"]
[null,":45",{"$nulls":3},"Гид",{"$nulls":3},"Затвори"]
[null,"11:00 AM",{"$nulls":3},"Гид",{"$nulls":3},"Затвори"]
[null,":15",{"$nulls":3},"Гид"]
[null,":30",{"$nulls":3},"Гид"]
[null,":45"]
[null,"12:00 PM"]
[]
[]
[]
[]
["График на служители"]
[]
[null,"ОБЩО:",null,{"$f":"SUM(124:124)","v":{"v":56,"d":"56.00"}}]
[null,"ЧАСОВЕ:",null,{"$f":"Общо_дневни_часове_на_служители","v":{"v":8,"d":"8.00"}},{"v":8,"d":"8.00"},{"v":8,"d":"8.00"},{"v":8,"d":"8.00"},{"v":8,"d":"8.00"},{"v":8,"d":"8.00"},{"v":8,"d":"8.00"},{"v":0,"d":"0.00"},{"v":0,"d":"0.00"},{"v":0,"d":"0.00"},{"v":0,"d":"0.00"},{"v":0,"d":"0.00"},{"v":0,"d":"0.00"},{"v":0,"d":"0.00"},{"v":0,"d":"0.00"},{"v":0,"d":"0.00"},{"v":0,"d":"0.00"},{"v":0,"d":"0.00"}]
[null,"СЛУЖИТЕЛ:",null,"Hamlin, J","Miller, B","Silva, A","Park, D","Hansen, C","Kerr, M","Rath, A"]
[]
[null,{"$f":"B67+1","v":"2012-07-18T09:00:00"}]
[null,{"$f":"B127","v":41108.375},{"$nulls":5},"Ваканция"]
[null,{"$f":"Показване_на_периоди","v":":15"},null,"Рецепция",{"$nulls":3},"Ваканция"]
[null,":30",null,"Рецепция",{"$nulls":3},"Ваканция"]
[null,":45",null,"Рецепция","Ръководител",null,"Обсл. на клиенти","Ваканция"]
[null,"4:00 PM",null,"Рецепция","Ръководител",null,"Обсл. на клиенти","Ваканция"]
[null,":15",null,"Рецепция","Ръководител",null,"Обсл. на клиенти","Ваканция"]
[null,":30",null,"Рецепция","Ръководител",null,"Обсл. на клиенти","Ваканция","Счетоводство"]
[null,":45",null,"Рецепция","Ръководител",null,"Обсл. на клиенти","Ваканция","Счетоводство","Чистач"]
[null,"5:00 PM",null,"Рецепция","Ръководител",null,"Обсл. на клиенти","Ваканция","Счетоводство","Чистач"]
[null,":15",null,"Рецепция","Ръководител","Гид","Обсл. на клиенти","Ваканция","Счетоводство","Чистач"]
[null,":30",null,"Рецепция","Почивка","Гид","Обсл. на клиенти","Ваканция","Счетоводство","Чистач"]
[null,":45",null,"Обяд","Ръководител","Гид","Обсл. на клиенти","Ваканция","Счетоводство","Чистач"]
[null,"6:00 PM",null,"Обяд","Ръководител","Гид","Обсл. на клиенти","Ваканция","Счетоводство","Чистач"]
[null,":15",null,"Рецепция","Ръководител","Гид","Обсл. на клиенти","Ваканция","Почивка","Чистач"]
[null,":30",null,"Рецепция","Ръководител","Почивка","Обсл. на клиенти","Ваканция","Телефони","Почивка"]
[null,":45",null,"Рецепция","Ръководител","Гид","Обсл. на клиенти","Ваканция","Телефони","Чистач"]
[null,"7:00 PM",null,"Рецепция","Ръководител","Гид","Обсл. на клиенти","Ваканция","Телефони","Чистач"]
[null,":15",null,"Рецепция","Ръководител","Гид","Обяд","Ваканция","Телефони","Чистач"]
[null,":30",null,null,"Ръководител","Гид","Обяд","Ваканция","Телефони","Чистач"]
[null,":45",null,null,"Ръководител","Гид","Обяд","Ваканция","Обяд","Чистач"]
[null,"8:00 PM",null,"Касиер","Обяд","Гид","Обяд","Ваканция","Обяд","Чистач"]
[null,":15",null,"Касиер","Обяд","Гид","Обсл. на клиенти","Ваканция","Телефони","Чистач"]
[null,":30",null,"Касиер","Обяд","Обяд","Обсл. на клиенти","Ваканция","Телефони","Обяд"]
[null,":45",null,"Касиер","Обяд","Обяд","Обсл. на клиенти","Ваканция","Телефони","Обяд"]
[null,"9:00 PM",null,"Касиер","Охрана","Обяд","Обсл. на клиенти","Ваканция","Телефони","Обяд"]
[null,":15",null,"Касиер","Охрана","Обяд","Обсл. на клиенти","Ваканция","Телефони","Обяд"]
[null,":30",null,"Касиер","Охрана","Гид","Обсл. на клиенти","Ваканция","Телефони","Затвори"]
[null,":45",null,"Касиер","Охрана","Гид","Обсл. на клиенти","Ваканция","Телефони","Затвори"]
[null,"10:00 PM",null,"Касиер","Охрана","Гид","Обсл. на клиенти","Ваканция","Почивка","Затвори"]
[null,":15",null,"Почивка","Охрана","Гид","Почивка","Ваканция","Телефони","Затвори"]
[null,":30",null,"Касиер","Охрана","Гид","Обсл. на клиенти","Ваканция","Телефони","Затвори"]
[null,":45",null,"Касиер","Охрана","Гид","Обсл. на клиенти","Ваканция","Телефони","Затвори"]
[null,"11:00 PM",null,"Касиер","Охрана","Гид","Обсл. на клиенти",null,"Телефони","Затвори"]
[null,":15",null,"Касиер","Охрана","Гид","Обсл. на клиенти",null,"Телефони","Затвори"]
[null,":30",null,"Касиер","Охрана","Гид","Обсл. на клиенти",null,"Телефони","Затвори"]
[null,":45",null,"Касиер","Охрана","Гид","Обсл. на клиенти",null,"Телефони","Затвори"]
[null,"12:00 AM",null,"Касиер","Охрана","Гид","Обсл. на клиенти",null,"Телефони","Затвори"]
[null,":15",null,"Касиер","Охрана","Гид","Обсл. на клиенти",null,"Телефони","Затвори"]
[null,":30",null,null,"Охрана","Гид","Обсл. на клиенти",null,"Телефони","Затвори"]
[null,":45",null,null,"Охрана","Почивка","Обсл. на клиенти",null,"Телефони","Почивка"]
[null,"1:00 AM",{"$nulls":3},"Гид",null,null,"Телефони","Затвори"]
[null,":15",{"$nulls":3},"Гид",null,null,"Телефони","Затвори"]
[null,":30",{"$nulls":3},"Гид",{"$nulls":3},"Затвори"]
[null,":45",{"$nulls":3},"Гид",{"$nulls":3},"Затвори"]
[null,"2:00 AM",{"$nulls":3},"Гид",{"$nulls":3},"Затвори"]
[null,":15",{"$nulls":3},"Гид"]
[null,":30",{"$nulls":3},"Гид"]
[null,":45"]
[null,"3:00 AM"]
[]
[]
[]
[]
["График на служители"]
[]
[null,"ОБЩО:",null,{"$f":"SUM(184:184)","v":{"v":56,"d":"56.00"}}]
[null,"ЧАСОВЕ:",null,{"$f":"Общо_дневни_часове_на_служители","v":{"v":8,"d":"8.00"}},{"v":8,"d":"8.00"},{"v":8,"d":"8.00"},{"v":8,"d":"8.00"},{"v":8,"d":"8.00"},{"v":8,"d":"8.00"},{"v":8,"d":"8.00"},{"v":0,"d":"0.00"},{"v":0,"d":"0.00"},{"v":0,"d":"0.00"},{"v":0,"d":"0.00"},{"v":0,"d":"0.00"},{"v":0,"d":"0.00"},{"v":0,"d":"0.00"},{"v":0,"d":"0.00"},{"v":0,"d":"0.00"},{"v":0,"d":"0.00"},{"v":0,"d":"0.00"}]
[null,"СЛУЖИТЕЛ:",null,"Hamlin, J","Miller, B","Silva, A","Park, D","Hansen, C","Kerr, M","Rath, A"]
[]
[null,{"$f":"B127+1","v":"2012-07-19T09:00:00"}]
[null,{"$f":"B187","v":41109.375},{"$nulls":5},"Ваканция"]
[null,{"$f":"Показване_на_периоди","v":":15"},null,"Рецепция",{"$nulls":3},"Ваканция"]
[null,":30",null,"Рецепция",{"$nulls":3},"Ваканция"]
[null,":45",null,"Рецепция","Ръководител",null,"Обсл. на клиенти","Ваканция"]
[null,"7:00 AM",null,"Рецепция","Ръководител",null,"Обсл. на клиенти","Ваканция"]
[null,":15",null,"Рецепция","Ръководител",null,"Обсл. на клиенти","Ваканция"]
[null,":30",null,"Рецепция","Ръководител",null,"Обсл. на клиенти","Ваканция","Счетоводство"]
[null,":45",null,"Рецепция","Ръководител",null,"Обсл. на клиенти","Ваканция","Счетоводство","Чистач"]
[null,"8:00 AM",null,"Рецепция","Ръководител",null,"Обсл. на клиенти","Ваканция","Счетоводство","Чистач"]
[null,":15",null,"Рецепция","Ръководител","Гид","Обсл. на клиенти","Ваканция","Счетоводство","Чистач"]
[null,":30",null,"Рецепция","Почивка","Гид","Обсл. на клиенти","Ваканция","Счетоводство","Чистач"]
[null,":45",null,"Обяд","Ръководител","Гид","Обсл. на клиенти","Ваканция","Счетоводство","Чистач"]
[null,"9:00 AM",null,"Обяд","Ръководител","Гид","Обсл. на клиенти","Ваканция","Счетоводство","Чистач"]
[null,":15",null,"Рецепция","Ръководител","Гид","Обсл. на клиенти","Ваканция","Почивка","Чистач"]
[null,":30",null,"Рецепция","Ръководител","Почивка","Обсл. на клиенти","Ваканция","Телефони","Почивка"]
[null,":45",null,"Рецепция","Ръководител","Гид","Обсл. на клиенти","Ваканция","Телефони","Чистач"]
[null,"10:00 AM",null,"Рецепция","Ръководител","Гид","Обсл. на клиенти","Ваканция","Телефони","Чистач"]
[null,":15",null,"Рецепция","Ръководител","Гид","Обяд","Ваканция","Телефони","Чистач"]
[null,":30",null,null,"Ръководител","Гид","Обяд","Ваканция","Телефони","Чистач"]
[null,":45",null,null,"Ръководител","Гид","Обяд","Ваканция","Обяд","Чистач"]
[null,"11:00 AM",null,"Касиер","Обяд","Гид","Обяд","Ваканция","Обяд","Чистач"]
[null,":15",null,"Касиер","Обяд","Гид","Обсл. на клиенти","Ваканция","Телефони","Чистач"]
[null,":30",null,"Касиер","Обяд","Обяд","Обсл. на клиенти","Ваканция","Телефони","Обяд"]
[null,":45",null,"Касиер","Обяд","Обяд","Обсл. на клиенти","Ваканция","Телефони","Обяд"]
[null,"12:00 PM",null,"Касиер","Охрана","Обяд","Обсл. на клиенти","Ваканция","Телефони","Обяд"]
[null,":15",null,"Касиер","Охрана","Обяд","Обсл. на клиенти","Ваканция","Телефони","Обяд"]
[null,":30",null,"Касиер","Охрана","Гид","Обсл. на клиенти","Ваканция","Телефони","Затвори"]
[null,":45",null,"Касиер","Охрана","Гид","Обсл. на клиенти","Ваканция","Телефони","Затвори"]
[null,"1:00 PM",null,"Касиер","Охрана","Гид","Обсл. на клиенти","Ваканция","Почивка","Затвори"]
[null,":15",null,"Почивка","Охрана","Гид","Почивка","Ваканция","Телефони","Затвори"]
[null,":30",null,"Касиер","Охрана","Гид","Обсл. на клиенти","Ваканция","Телефони","Затвори"]
[null,":45",null,"Касиер","Охрана","Гид","Обсл. на клиенти","Ваканция","Телефони","Затвори"]
[null,"2:00 PM",null,"Касиер","Охрана","Гид","Обсл. на клиенти",null,"Телефони","Затвори"]
[null,":15",null,"Касиер","Охрана","Гид","Обсл. на клиенти",null,"Телефони","Затвори"]
[null,":30",null,"Касиер","Охрана","Гид","Обсл. на клиенти",null,"Телефони","Затвори"]
[null,":45",null,"Касиер","Охрана","Гид","Обсл. на клиенти",null,"Телефони","Затвори"]
[null,"3:00 PM",null,"Касиер","Охрана","Гид","Обсл. на клиенти",null,"Телефони","Затвори"]
[null,":15",null,"Касиер","Охрана","Гид","Обсл. на клиенти",null,"Телефони","Затвори"]
[null,":30",null,null,"Охрана","Гид","Обсл. на клиенти",null,"Телефони","Затвори"]
[null,":45",null,null,"Охрана","Почивка","Обсл. на клиенти",null,"Телефони","Почивка"]
[null,"4:00 PM",{"$nulls":3},"Гид",null,null,"Телефони","Затвори"]
[null,":15",{"$nulls":3},"Гид",null,null,"Телефони","Затвори"]
[null,":30",{"$nulls":3},"Гид",{"$nulls":3},"Затвори"]
[null,":45",{"$nulls":3},"Гид",{"$nulls":3},"Затвори"]
[null,"5:00 PM",{"$nulls":3},"Гид",{"$nulls":3},"Затвори"]
[null,":15",{"$nulls":3},"Гид"]
[null,":30",{"$nulls":3},"Гид"]
[null,":45"]
[null,"6:00 PM"]
[]
[]
[]
[]
["График на служители"]
[]
[null,"ОБЩО:",null,{"$f":"SUM(244:244)","v":{"v":56,"d":"56.00"}}]
[null,"ЧАСОВЕ:",null,{"$f":"Общо_дневни_часове_на_служители","v":{"v":8,"d":"8.00"}},{"v":8,"d":"8.00"},{"v":8,"d":"8.00"},{"v":8,"d":"8.00"},{"v":8,"d":"8.00"},{"v":8,"d":"8.00"},{"v":8,"d":"8.00"},{"v":0,"d":"0.00"},{"v":0,"d":"0.00"},{"v":0,"d":"0.00"},{"v":0,"d":"0.00"},{"v":0,"d":"0.00"},{"v":0,"d":"0.00"},{"v":0,"d":"0.00"},{"v":0,"d":"0.00"},{"v":0,"d":"0.00"},{"v":0,"d":"0.00"},{"v":0,"d":"0.00"}]
[null,"СЛУЖИТЕЛ:",null,"Hamlin, J","Miller, B","Silva, A","Park, D","Hansen, C","Kerr, M","Rath, A"]
[]
[null,{"$f":"B187+1","v":"2012-07-20T09:00:00"}]
[null,{"$f":"B247","v":41110.375},{"$nulls":5},"Ваканция"]
[null,{"$f":"Показване_на_периоди","v":":15"},null,"Рецепция",{"$nulls":3},"Ваканция"]
[null,":30",null,"Рецепция",{"$nulls":3},"Ваканция"]
[null,":45",null,"Рецепция","Ръководител",null,"Обсл. на клиенти","Ваканция"]
[null,"10:00 PM",null,"Рецепция","Ръководител",null,"Обсл. на клиенти","Ваканция"]
[null,":15",null,"Рецепция","Ръководител",null,"Обсл. на клиенти","Ваканция"]
[null,":30",null,"Рецепция","Ръководител",null,"Обсл. на клиенти","Ваканция","Счетоводство"]
[null,":45",null,"Рецепция","Ръководител",null,"Обсл. на клиенти","Ваканция","Счетоводство","Чистач"]
[null,"11:00 PM",null,"Рецепция","Ръководител",null,"Обсл. на клиенти","Ваканция","Счетоводство","Чистач"]
[null,":15",null,"Рецепция","Ръководител","Гид","Обсл. на клиенти","Ваканция","Счетоводство","Чистач"]
[null,":30",null,"Рецепция","Почивка","Гид","Обсл. на клиенти","Ваканция","Счетоводство","Чистач"]
[null,":45",null,"Обяд","Ръководител","Гид","Обсл. на клиенти","Ваканция","Счетоводство","Чистач"]
[null,"12:00 AM",null,"Обяд","Ръководител","Гид","Обсл. на клиенти","Ваканция","Счетоводство","Чистач"]
[null,":15",null,"Рецепция","Ръководител","Гид","Обсл. на клиенти","Ваканция","Почивка","Чистач"]
[null,":30",null,"Рецепция","Ръководител","Почивка","Обсл. на клиенти","Ваканция","Телефони","Почивка"]
[null,":45",null,"Рецепция","Ръководител","Гид","Обсл. на клиенти","Ваканция","Телефони","Чистач"]
[null,"1:00 AM",null,"Рецепция","Ръководител","Гид","Обсл. на клиенти","Ваканция","Телефони","Чистач"]
[null,":15",null,"Рецепция","Ръководител","Гид","Обяд","Ваканция","Телефони","Чистач"]
[null,":30",null,null,"Ръководител","Гид","Обяд","Ваканция","Телефони","Чистач"]
[null,":45",null,null,"Ръководител","Гид","Обяд","Ваканция","Обяд","Чистач"]
[null,"2:00 AM",null,"Касиер","Обяд","Гид","Обяд","Ваканция","Обяд","Чистач"]
[null,":15",null,"Касиер","Обяд","Гид","Обсл. на клиенти","Ваканция","Телефони","Чистач"]
[null,":30",null,"Касиер","Обяд","Обяд","Обсл. на клиенти","Ваканция","Телефони","Обяд"]
[null,":45",null,"Касиер","Обяд","Обяд","Обсл. на клиенти","Ваканция","Телефони","Обяд"]
[null,"3:00 AM",null,"Касиер","Охрана","Обяд","Обсл. на клиенти","Ваканция","Телефони","Обяд"]
[null,":15",null,"Касиер","Охрана","Обяд","Обсл. на клиенти","Ваканция","Телефони","Обяд"]
[null,":30",null,"Касиер","Охрана","Гид","Обсл. на клиенти","Ваканция","Телефони","Затвори"]
[null,":45",null,"Касиер","Охрана","Гид","Обсл. на клиенти","Ваканция","Телефони","Затвори"]
[null,"4:00 AM",null,"Касиер","Охрана","Гид","Обсл. на клиенти","Ваканция","Почивка","Затвори"]
[null,":15",null,"Почивка","Охрана","Гид","Почивка","Ваканция","Телефони","Затвори"]
[null,":30",null,"Касиер","Охрана","Гид","Обсл. на клиенти","Ваканция","Телефони","Затвори"]
[null,":45",null,"Касиер","Охрана","Гид","Обсл. на клиенти","Ваканция","Телефони","Затвори"]
[null,"5:00 AM",null,"Касиер","Охрана","Гид","Обсл. на клиенти",null,"Телефони","Затвори"]
[null,":15",null,"Касиер","Охрана","Гид","Обсл. на клиенти",null,"Телефони","Затвори"]
[null,":30",null,"Касиер","Охрана","Гид","Обсл. на клиенти",null,"Телефони","Затвори"]
[null,":45",null,"Касиер","Охрана","Гид","Обсл. на клиенти",null,"Телефони","Затвори"]
[null,"6:00 AM",null,"Касиер","Охрана","Гид","Обсл. на клиенти",null,"Телефони","Затвори"]
[null,":15",null,"Касиер","Охрана","Гид","Обсл. на клиенти",null,"Телефони","Затвори"]
[null,":30",null,null,"Охрана","Гид","Обсл. на клиенти",null,"Телефони","Затвори"]
[null,":45",null,null,"Охрана","Почивка","Обсл. на клиенти",null,"Телефони","Почивка"]
[null,"7:00 AM",{"$nulls":3},"Гид",null,null,"Телефони","Затвори"]
[null,":15",{"$nulls":3},"Гид",null,null,"Телефони","Затвори"]
[null,":30",{"$nulls":3},"Гид",{"$nulls":3},"Затвори"]
[null,":45",{"$nulls":3},"Гид",{"$nulls":3},"Затвори"]
[null,"8:00 AM",{"$nulls":3},"Гид",{"$nulls":3},"Затвори"]
[null,":15",{"$nulls":3},"Гид"]
[null,":30",{"$nulls":3},"Гид"]
[null,":45"]
[null,"9:00 AM"]

{"sheet":"Настройка","index":1,"n_rows":26,"n_cols":7,"rows_kept":26}
[null,"Настройка"]
[]
[]
[null,"УВЕЛИЧЕНИЕ ЗА \nДОПЪЛНИТЕЛЕН ЧАС",4]
[]
[]
[]
[]
[]
[null,"Служители",null,"Длъжност/време на отсъствие","Цвят","Платени","Цял ден"]
[null,"Hamlin, J",null,"Обяд",1,false,false]
[null,"Hansen, C",null,"Почивка",1,false,false]
[null,"Kerr, M",null,"Отсъства",1,false,true]
[null,"Levin, D",null,"Болен",1,false,true]
[null,"Miller, B",null,"Лични",1,true,true]
[null,"Park, D",null,"Ваканция",1,true,true]
[null,"Rath, A",null,"Рецепция",2,true,false]
[null,"Silva, A",null,"Касиер",3,true,false]
[{"$nulls":3},"Ръководител",4,true,false]
[{"$nulls":3},"Гид",5,true,false]
[{"$nulls":3},"Обсл. на клиенти",6,true,false]
[{"$nulls":3},"Телефони",7,true,false]
[{"$nulls":3},"Охрана",8,true,false]
[{"$nulls":3},"Чистач",9,true,false]
[{"$nulls":3},"Счетоводство",10,true,false]
[{"$nulls":3},"Затвори",11,true,false]